bitfinex-derivatives/quotes_ETHF0:USTF0_20250807
["timestamp","ask_amount","ask_price","bid_price","bid_amount"]
[1754604502711,0.51583,3875.6,3875.5,0.9999]
[1754604503112,0.92913,3875.6,3875.5,2.3391]
[1754604503313,1.38643,3875.6,3875.5,2.3391]
[1754604503813,0.51583,3875.6,3875.5,2.3391]
[1754604504115,0.92913,3875.6,3875.5,2.3391]
[1754604504414,0.51583,3875.6,3875.5,1.3392]
[1754604505007,0.51579,3875.9,3875.5,1.3392]
[1754604505207,0.22812667,3876.8,3876.1,0.4305]
[1754604505512,1.4133,3877.0,3876.5,0.8794]
[1754604505718,1.4133,3877.0,3876.3,3.2078]
[1754604505719,1.64725355,3877.0,3876.3,3.2078]
[1754604506010,0.51569,3876.7,3876.3,3.72353]
[1754604506219,1.64725355,3877.0,3876.3,3.2078]
[1754604506513,0.51572,3876.5,3876.4,1.3392]
[1754604507010,1.83892,3876.5,3876.4,1.3392]
[1754604507212,0.92902,3876.5,3876.4,1.3392]
[1754604507402,0.51572,3876.5,3876.4,1.3392]
[1754604507805,0.5157,3876.6,3876.5,1.3392]
[1754604508411,0.5157,3876.6,3876.5,0.4305]
[1754604508412,1.8389,3876.6,3876.5,0.4305]
[1754604509111,1.3863,3876.6,3876.5,1.3392]
[1754604509908,1.8389,3876.6,3876.5,0.8903]
[1754604510114,1.8389,3876.6,3876.5,0.4305]
[1754604510310,1.8389,3876.6,3876.4,0.9999]
[1754604510512,1.8389,3876.6,3876.5,0.8903]
[1754604510715,1.3232,3876.5,3876.4,0.9999]
[1754604510916,19.3422,3876.5,3876.4,0.9999]
[1754604511113,0.51581,3875.7,3875.6,0.4305]
[1754604511317,0.51581,3875.7,3875.6,1.3392]
[1754604513015,0.51583,3875.6,3875.4,1.2905]
[1754604513216,0.51583,3875.6,3875.5,1.2905]
[1754604513517,0.51585,3875.4,3875.3,4.4983]
[1754604514916,0.96975,3875.4,3875.3,4.4983]
[1754604515818,0.51585,3875.4,3875.3,4.4983]
[1754604517217,1.83265,3875.4,3875.3,3.6493]
[1754604517417,1.83265,3875.4,3875.3,0.4415]
[1754604517719,1.83269,3875.1,3874.9,3.2078]
[1754604517915,0.51589,3875.1,3874.9,3.2078]
[1754604518111,0.51596,3874.6,3874.5,0.4415]
[1754604518321,1.397,3874.3,3874.2,1.2905]
[1754604518720,1.3168,3874.9,3874.1,0.51602]
[1754604518916,1.3168,3874.9,3874.2,1.2905]
[1754604519116,1.3168,3874.9,3874.3,0.849]
[1754604519321,0.51597,3874.6,3874.4,0.4415]
[1754604519519,0.51592,3874.9,3874.6,1.2905]
[1754604519823,0.51594,3874.7,3874.6,1.2905]
[1754604520018,0.51594,3874.8,3874.5,3.2078]
[1754604520230,0.51596,3874.6,3874.5,3.2078]
[1754604520419,1.83276,3874.6,3874.5,3.2078]
[1754604520919,0.4539,3875.2,3874.6,0.8613]
[1754604521120,0.87584759,3875.3,3874.5,3.2078]
[1754604521316,1.37881,3875.0,3874.7,0.4292]
[1754604521522,0.51592,3874.9,3874.5,3.2078]
[1754604521722,0.94302,3874.9,3874.5,3.2078]
[1754604522018,0.4539,3874.8,3874.6,0.849]
[1754604522220,0.4539,3874.8,3874.5,3.2078]
[1754604522425,0.4539,3874.8,3874.7,1.2905]
[1754604522624,1.32974759,3875.3,3874.7,0.51595]
[1754604522831,0.881,3875.2,3875.1,0.8707]
[1754604523025,0.87584759,3875.3,3875.1,0.8707]
[1754604523227,1.39376391,3875.9,3875.4,0.51585]
[1754604523532,1.84766391,3875.9,3875.8,1.2905]
[1754604523721,1.39376391,3875.9,3875.8,1.2905]
[1754604523922,1.1627447,3876.2,3875.8,1.2905]
[1754604524117,0.4539,3875.9,3875.3,3.2078]
[1754604524327,1.3168,3875.9,3875.3,4.0691]
[1754604524522,1.3168,3875.8,3875.3,3.2078]
[1754604524717,0.4271,3875.6,3875.4,0.849]
[1754604525033,1.3168,3875.5,3875.4,0.4415]
[1754604525332,1.3168,3875.4,3875.3,3.2078]
[1754604526030,1.3168,3875.4,3875.3,4.4983]
[1754604526031,0.881,3875.4,3875.3,4.4983]
[1754604526230,1.3168,3875.4,3875.3,4.0785]
[1754604526425,1.3168,3875.4,3875.3,3.6493]
[1754604526928,0.881,3875.4,3875.3,4.4983]
[1754604527116,1.3168,3875.8,3875.4,1.2905]
[1754604527320,1.3168,3875.8,3875.7,4.4983]
[1754604527321,0.881,3875.8,3875.7,4.4983]
[1754604527522,0.51581,3875.7,3875.3,4.15286]
[1754604527729,1.39679,3875.9,3875.6,0.4198]
[1754604527922,1.83259,3875.9,3875.8,0.4415]
[1754604528125,1.3168,3875.8,3875.4,0.95734]
[1754604528327,1.3168,3875.7,3875.6,1.2905]
[1754604528824,1.3168,3875.7,3875.6,0.8707]
[1754604529022,1.3168,3875.7,3875.3,3.2078]
[1754604529220,1.3168,3875.8,3875.3,3.2078]
[1754604529428,1.3168,3875.6,3875.3,4.0785]
[1754604529628,1.3168,3875.5,3875.4,1.2905]
[1754604529834,0.4539,3875.5,3875.4,1.2905]
[1754604530124,1.3168,3875.7,3875.6,0.4415]
[1754604530327,0.4539,3875.7,3875.6,1.2905]
[1754604530729,0.881,3875.7,3875.6,1.2905]
[1754604531028,0.4358,3876.1,3875.6,1.2905]
[1754604531029,0.51579,3875.9,3875.6,1.2905]
[1754604531229,0.4271,3876.0,3875.7,3.7236]
[1754604531425,0.4358,3876.1,3875.9,1.2905]
[1754604531626,1.30238111,3876.4,3875.8,0.8707]
[1754604531929,0.87528111,3876.4,3876.3,4.4983]
[1754604532227,1.39376391,3876.9,3876.3,4.4983]
[1754604532228,0.54144493,3877.0,3876.9,1.80615]
[1754604532429,0.05554493,3877.0,3876.9,5.01395]
[1754604532628,1.39376391,3877.7,3877.5,0.51557]
[1754604532933,1.39376391,3877.9,3877.6,3.72336]
[1754604533129,1.39376391,3878.2,3878.1,0.51549]
[1754604533430,0.51547,3878.3,3878.2,0.8613]
[1754604534131,1.83227,3878.3,3878.2,0.4415]
[1754604534434,0.881,3878.2,3878.1,3.2078]
[1754604534622,0.881,3878.2,3878.1,3.6493]
[1754604534826,0.881,3878.2,3878.1,4.0691]
[1754604535028,0.881,3878.2,3878.1,3.6493]
[1754604535232,1.3168,3878.2,3878.1,3.6493]
[1754604535433,1.3168,3878.2,3878.1,0.4415]
[1754604536427,1.3168,3878.2,3877.6,3.2078]
[1754604536428,0.94263,3877.9,3877.6,3.2078]
[1754604536636,1.83235,3877.7,3877.6,3.2078]
[1754604537036,1.3168,3877.7,3877.6,4.0691]
[1754604537237,1.3168,3877.7,3877.6,3.6276]
[1754604537736,18.015,3878.1,3877.2,3.2078]
[1754604537737,0.4539,3878.0,3877.2,3.2078]
[1754604538030,0.4271,3877.9,3877.2,3.6276]
[1754604538230,0.4271,3877.9,3877.3,0.4415]
[1754604538440,0.4539,3877.8,3877.3,0.4415]
[1754604538638,19.30376,3878.1,3877.3,0.8613]
[1754604538857,18.015,3878.1,3877.2,3.2078]
[1754604539031,18.894,3878.1,3877.4,0.8613]
[1754604539335,0.4271,3878.0,3877.8,0.51553]
[1754604539528,0.4271,3878.0,3877.0,1.28909]
[1754604539529,3.6617,3879.6,3878.9,0.51538]
[1754604539733,0.4271,3879.4,3878.8,0.4198]
[1754604539935,0.94246,3879.1,3878.9,0.4198]
[1754604540138,0.5154,3878.8,3878.7,3.2078]
[1754604540336,0.881,3878.8,3878.7,3.6493]
[1754604540537,0.881,3878.8,3878.7,4.0691]
[1754604540738,1.37828,3879.0,3878.8,0.8613]
[1754604540938,0.51536,3879.1,3878.7,3.2078]
[1754604541239,0.8629,3879.1,3878.8,0.4415]
[1754604541442,1.3184,3879.0,3878.8,0.4415]
[1754604541634,0.9515,3878.8,3878.7,3.2078]
[1754604541838,1.84394,3878.5,3878.4,0.9999]
[1754604542737,0.8924,3878.4,3878.2,0.8673]
[1754604542942,1.40787,3878.3,3878.2,0.4188]
[1754604543140,1.84397,3878.3,3878.2,0.4188]
[1754604543530,0.8924,3878.2,3878.1,3.6266]
[1754604543731,1.40787,3878.3,3878.2,0.8673]
[1754604543933,0.8916,3878.2,3878.1,3.2078]
[1754604544133,0.51552,3877.9,3877.8,0.9999]
[1754604544341,1.84402,3877.9,3877.8,0.9999]
[1754604544937,1.84402,3877.9,3877.8,1.4187]
[1754604545143,1.84402,3877.9,3877.8,0.4188]
[1754604545144,0.4369,3877.9,3877.8,0.4188]
[1754604545336,0.5155,3878.1,3877.9,0.8673]
[1754604545643,0.95242,3877.9,3877.8,0.8673]
[1754604546142,0.95242,3877.9,3877.7,3.2078]
[1754604546143,0.4555,3878.4,3877.7,3.2078]
[1754604546336,0.4369,3878.0,3877.8,0.8673]
[1754604546539,0.51549,3878.1,3877.8,0.8673]
[1754604546736,0.51548,3878.2,3877.7,3.72334]
[1754604546935,0.51551,3878.0,3877.9,0.8673]
[1754604547139,0.51549,3878.1,3877.7,3.72335]
[1754604547340,0.51548,3878.2,3877.7,3.2078]
[1754604547541,0.4555,3877.9,3877.8,0.4188]
[1754604547841,1.84403,3877.8,3877.7,3.2078]
[1754604548741,0.51559,3877.4,3877.3,1.8672]
[1754604548940,1.3285,3877.8,3877.3,1.8672]
[1754604549137,0.4369,3877.7,3877.4,0.8673]
[1754604549445,0.4369,3877.4,3877.3,0.8673]
[1754604549741,1.8441,3877.3,3877.2,3.6266]
[1754604549946,0.4369,3877.3,3877.2,4.0751]
[1754604550339,1.3285,3877.3,3877.2,3.2078]
[1754604550540,0.51563,3877.1,3876.9,0.4485]
[1754604550844,1.84418,3876.7,3876.6,0.9999]
[1754604551741,0.51571,3876.5,3876.3,3.2078]
[1754604551942,0.95261,3876.5,3876.4,0.8673]
[1754604552343,0.4369,3876.5,3876.4,0.8673]
[1754604552838,0.8924,3876.5,3876.4,0.8673]
[1754604553039,0.51572,3876.4,3876.3,3.2078]
[1754604553240,0.873,3876.5,3876.0,0.9999]
[1754604553445,1.3285,3876.1,3876.0,0.9999]
[1754604554343,0.51583,3875.6,3875.5,3.2078]
[1754604554641,1.84433,3875.6,3875.5,3.2078]
[1754604554846,1.3285,3875.2,3875.1,3.2078]
[1754604555344,1.40833,3874.8,3874.7,3.2078]
[1754604555546,1.40833,3874.8,3874.7,3.6266]
[1754604555747,1.40833,3874.8,3874.7,5.075]
[1754604556249,0.8924,3874.8,3874.7,5.075]
[1754604556446,1.3285,3874.8,3874.7,4.2077]
[1754604556749,0.8924,3874.8,3874.7,3.2078]
[1754604556947,0.4369,3875.0,3874.9,0.8673]
[1754604557247,0.95277,3875.3,3875.0,0.8673]
[1754604557448,0.51589,3875.1,3874.7,3.72374]
[1754604557643,0.51589,3875.1,3874.7,3.2078]
[1754604558044,0.51589,3875.2,3874.8,0.8673]
[1754604558251,0.95279,3875.2,3875.1,3.2078]
[1754604558445,0.4369,3875.5,3875.2,0.4485]
[1754604558744,0.4555,3875.6,3875.2,0.4188]
[1754604558947,0.51584,3875.5,3875.3,0.8673]
[1754604559144,0.51584,3875.5,3875.1,3.72369]
[1754604559349,0.95274,3875.5,3875.4,0.8673]
[1754604559650,0.5158,3875.8,3875.4,0.8673]
[1754604559847,0.95273,3875.7,3875.4,0.8673]
[1754604560044,0.51582,3875.7,3875.3,0.51587]
[1754604560348,18.032,3876.2,3875.1,3.2078]
[1754604560349,0.4369,3875.8,3875.7,0.8673]
[1754604560851,0.4369,3875.3,3875.2,0.8673]
[1754604561051,0.8924,3875.3,3875.2,0.8673]
[1754604561544,1.84438,3875.2,3875.1,0.9999]
[1754604561748,1.28951,3875.8,3875.1,0.9999]
[1754604561749,0.8916,3875.8,3875.1,0.9999]
[1754604561950,18.038,3875.7,3875.1,4.6265]
[1754604562151,0.4369,3875.2,3875.1,0.8673]
[1754604562350,1.28965,3875.4,3874.8,0.4188]
[1754604562544,0.873,3875.1,3874.8,0.4188]
[1754604562746,0.4555,3874.9,3874.8,0.4188]
[1754604562946,0.8924,3874.9,3874.8,0.8673]
[1754604563147,0.4369,3874.9,3874.8,1.38323]
[1754604563351,0.4369,3875.2,3874.7,3.2078]
[1754604563547,0.51586,3875.4,3875.1,3.2078]
[1754604563749,0.95276,3875.4,3875.3,0.8673]
[1754604564054,1.40826,3875.4,3875.3,0.8673]
[1754604564254,1.84436,3875.4,3875.3,0.4188]
[1754604565853,0.8924,3875.4,3875.3,0.8673]
[1754604566052,0.4369,3875.4,3875.3,0.8673]
[1754604567153,0.4555,3875.7,3875.2,0.51588]
[1754604567357,0.4369,3875.5,3875.4,0.8673]
[1754604567655,1.3285,3875.5,3875.4,0.8673]
[1754604567856,0.4369,3875.8,3875.1,3.2078]
[1754604568159,0.8924,3875.7,3875.6,0.8673]
[1754604568454,1.3285,3875.7,3875.6,0.8673]
[1754604568954,0.4369,3876.0,3875.7,0.8673]
[1754604569151,1.40817,3876.0,3875.9,4.0751]
[1754604569450,0.8924,3875.6,3875.5,4.0751]
[1754604569959,1.3285,3875.6,3875.5,3.2078]
[1754604570149,1.84434,3875.5,3875.1,4.0751]
[1754604570455,1.84436,3875.3,3875.1,3.2078]
[1754604570655,1.3285,3875.2,3875.1,3.2078]
[1754604571746,0.4188,3875.7,3875.1,4.0704]
[1754604571948,1.28927,3876.5,3875.7,0.4252]
[1754604572155,0.5158,3875.8,3875.7,0.8626]
[1754604572356,0.8447,3875.8,3875.7,0.8626]
[1754604572557,0.4188,3876.4,3875.8,0.4252]
[1754604572752,0.8447,3876.4,3876.0,3.2078]
[1754604572955,0.94163,3876.4,3876.3,0.8626]
[1754604573152,0.94163,3876.4,3876.0,3.2078]
[1754604573153,0.51575,3876.2,3876.0,3.2078]
[1754604573457,1.2614,3876.1,3876.0,3.2078]
[1754604573853,0.8355,3877.1,3876.0,4.0704]
[1754604574047,0.8447,3876.9,3876.1,0.8626]
[1754604574353,18.029,3877.0,3876.5,0.4374]
[1754604574655,1.2614,3876.6,3876.5,0.4374]
[1754604574855,1.77709,3876.6,3876.5,0.4374]
[1754604575453,1.77709,3876.6,3876.5,0.8626]
[1754604575454,0.8447,3876.6,3876.5,0.8626]
[1754604575662,0.4259,3876.9,3876.6,0.8626]
[1754604575856,0.4259,3876.9,3876.8,0.8626]
[1754604576459,0.51566,3876.8,3876.5,0.8626]
[1754604576655,0.4259,3876.7,3876.4,3.2078]
[1754604576857,0.4167,3877.6,3877.2,0.51561]
[1754604577052,0.4259,3877.6,3877.5,4.0704]
[1754604577263,18.53851,3878.0,3877.6,0.8626]
[1754604577554,0.4188,3878.0,3877.6,0.8626]
[1754604577753,0.51548,3878.2,3877.7,0.8626]
[1754604578162,0.4259,3878.1,3877.8,0.8626]
[1754604578361,0.4259,3878.1,3878.0,0.4252]
[1754604578561,1.77689,3878.1,3878.0,0.8626]
[1754604579360,0.51556,3877.6,3877.5,3.6452]
[1754604579660,1.2614,3877.5,3877.4,0.9999]
[1754604580556,0.51562,3877.1,3877.0,0.4374]
[1754604580763,0.51573,3876.3,3876.2,0.4252]
[1754604580965,0.51573,3876.3,3876.2,3.633]
[1754604581166,1.35833,3876.3,3876.2,3.633]
[1754604581358,0.94163,3876.3,3876.2,3.633]
[1754604581558,0.94163,3876.3,3876.2,4.0818]
[1754604582063,0.8447,3877.3,3876.3,0.4252]
[1754604582263,0.8426,3877.3,3877.1,0.4252]
[1754604582461,1.3582,3877.3,3877.2,0.4252]
[1754604582661,1.777,3877.3,3877.2,0.4252]
[1754604583565,1.777,3877.3,3877.2,0.8626]
[1754604583766,1.777,3877.3,3877.0,3.2078]
[1754604583971,1.35822,3877.1,3877.0,3.633]
[1754604584268,1.77702,3877.1,3877.0,3.633]
[1754604584473,1.77702,3877.1,3877.0,3.2078]
[1754604584670,0.51568,3876.7,3876.6,0.4374]
[1754604584874,0.51568,3876.7,3876.5,3.2078]
[1754604584875,0.4259,3876.6,3876.5,3.2078]
[1754604585071,1.2614,3876.6,3876.5,3.633]
[1754604585372,0.51567,3876.8,3876.6,0.4374]
[1754604585583,0.51565,3877.0,3876.8,0.8626]
[1754604585770,0.51565,3877.0,3876.9,4.0704]
[1754604587675,0.5156,3877.3,3876.9,3.2078]
[1754604588178,0.51563,3877.1,3877.0,0.8626]
[1754604588384,1.35823,3877.1,3877.0,0.8626]
[1754604588676,0.94153,3877.1,3877.0,0.8626]
[1754604588883,0.51563,3877.1,3877.0,0.8626]
[1754604589969,1.77703,3877.1,3877.0,0.8626]
[1754604590978,1.77703,3877.1,3876.9,3.2078]
[1754604591182,1.2614,3877.0,3876.9,4.0704]
[1754604591573,0.4259,3877.0,3876.9,4.0704]
[1754604591881,1.2614,3877.0,3876.9,4.0704]
[1754604592984,0.51563,3877.1,3877.0,0.8626]
[1754604593472,0.5156,3877.3,3876.9,3.2078]
[1754604593676,0.5156,3877.3,3877.2,0.8626]
[1754604593880,0.4259,3877.9,3877.3,0.8626]
[1754604594075,0.51557,3877.6,3877.5,3.2078]
[1754604594784,0.51557,3877.6,3877.5,4.0704]
[1754604595280,0.94147,3877.6,3877.5,3.2078]
[1754604595486,0.4188,3877.9,3877.5,3.2078]
[1754604595487,0.51555,3877.7,3877.5,3.2078]
[1754604595680,0.51555,3877.7,3877.6,0.8626]
[1754604596185,1.77695,3877.7,3877.6,0.8626]
[1754604596579,1.2614,3877.7,3877.6,0.8626]
[1754604596879,0.4259,3877.7,3877.6,0.8626]
[1754604597081,1.77696,3877.6,3877.5,3.2078]
[1754604597475,1.77696,3877.6,3877.5,4.0704]
[1754604597775,1.77696,3877.6,3877.5,3.2078]
[1754604598380,1.77696,3877.6,3877.5,4.0704]
[1754604598575,1.36026,3877.6,3877.5,4.0704]
[1754604598782,1.77696,3877.6,3877.5,4.0704]
[1754604598981,1.28876,3878.1,3877.5,3.2078]
[1754604598982,0.51555,3877.7,3877.5,3.2078]
[1754604599186,0.93432,3878.0,3877.7,0.4252]
[1754604599482,0.4188,3878.0,3877.9,0.8626]
[1754604599879,1.77687,3878.3,3878.0,1.3781]
[1754604600080,18.52843,3878.6,3878.3,0.51546]
[1754604600287,0.94131,3878.8,3878.4,1.37804]
[1754604600486,0.51545,3878.4,3878.1,0.8626]
[1754604600783,1.2614,3878.7,3878.4,0.51544]
[1754604600985,1.77681,3878.7,3878.2,0.51547]
[1754604601284,0.4259,3878.2,3878.1,0.8626]
[1754604601491,1.287,3878.2,3878.1,0.8626]
[1754604601786,1.287,3878.2,3878.1,1.8625]
[1754604601980,1.287,3878.2,3878.1,0.9999]
[1754604602176,0.4444,3878.7,3878.4,0.8331]
[1754604602392,0.94138,3878.9,3878.8,0.8331]
[1754604602689,0.426,3878.9,3878.8,0.8331]
[1754604602890,0.426,3879.1,3878.9,0.51538]
[1754604603084,0.426,3879.3,3879.1,0.405]
[1754604603390,0.426,3879.3,3879.2,0.8331]
[1754604603890,0.66076182,3879.7,3879.2,0.8331]
[1754604604188,0.426,3879.2,3879.1,0.8331]
[1754604604397,0.8716,3879.2,3879.1,0.8331]
[1754604604786,1.83136,3879.1,3878.9,3.6359]
[1754604604986,1.316,3879.0,3878.9,3.6359]
[1754604605689,1.83141,3878.7,3878.6,0.9999]
[1754604607487,0.94141,3878.7,3878.6,1.833]
[1754604607794,1.83141,3878.7,3878.6,1.833]
[1754604608587,1.83141,3878.7,3878.6,0.9999]
[1754604608788,0.51544,3878.5,3878.1,0.8331]
[1754604608993,1.316,3878.4,3878.2,0.8331]
[1754604609187,1.316,3878.3,3878.2,0.8331]
[1754604609692,1.316,3878.1,3878.0,3.2078]
[1754604609894,0.5155,3878.1,3877.9,0.9999]
[1754604610090,1.316,3878.0,3877.9,0.9999]
[1754604610995,1.28854,3878.7,3877.5,4.0409]
[1754604610996,1.316,3877.6,3877.5,4.0409]
[1754604611293,1.316,3877.6,3877.5,3.2078]
[1754604611488,1.316,3877.6,3877.5,4.2077]
[1754604612197,1.83155,3877.6,3877.5,0.9999]
[1754604612594,0.8716,3877.1,3877.0,3.2078]
[1754604612799,0.8716,3877.1,3877.0,4.0409]
[1754604613297,0.51559,3877.4,3877.0,4.0409]
[1754604613491,0.51559,3877.4,3877.1,0.51562]
[1754604613683,0.426,3877.4,3877.3,0.405]
[1754604613884,0.426,3877.7,3877.3,0.51558]
[1754604614095,0.51558,3877.4,3877.1,0.51561]
[1754604614396,0.51561,3877.2,3877.0,4.2077]
[1754604614589,1.316,3877.1,3877.0,4.6358]
[1754604614784,1.316,3877.1,3877.0,4.2077]
[1754604615186,0.51558,3877.5,3877.2,0.405]
[1754604615496,0.51556,3877.6,3877.5,0.8331]
[1754604615898,1.83156,3877.6,3877.5,0.8331]
[1754604616092,1.316,3877.6,3877.5,0.8331]
[1754604616293,1.316,3877.6,3877.5,0.4281]
[1754604616597,1.316,3877.6,3877.0,1.4049]
[1754604616598,1.40562,3877.1,3877.0,5.0408]
[1754604616797,1.83162,3877.1,3877.0,5.0408]
[1754604616995,1.83162,3877.1,3877.0,4.0409]
[1754604617196,1.316,3877.1,3877.0,4.0409]
[1754604617398,1.316,3877.1,3877.0,5.0408]
[1754604617590,0.426,3877.4,3877.1,0.51562]
[1754604617895,0.426,3877.3,3877.2,0.8331]
[1754604618490,1.40559,3877.4,3877.2,0.8331]
[1754604618491,0.51559,3877.4,3877.2,0.4281]
[1754604618698,1.40558,3877.4,3877.3,0.8331]
[1754604618898,0.89,3877.4,3877.3,0.8331]
[1754604619196,0.4456,3877.9,3877.3,0.8331]
[1754604619401,0.51555,3877.7,3877.5,0.405]
[1754604619595,1.316,3877.6,3877.5,0.8331]
[1754604619900,0.8716,3877.6,3877.5,0.8331]
[1754604620092,1.316,3877.6,3877.5,0.8331]
[1754604620398,0.426,3878.0,3877.5,0.8331]
[1754604620698,18.8826,3878.1,3877.9,0.51551]
[1754604620896,0.426,3878.3,3877.9,0.51551]
[1754604621198,0.426,3878.3,3877.8,3.2078]
[1754604621199,1.316,3878.5,3878.4,0.405]
[1754604621399,1.316,3878.5,3878.4,0.8331]
[1754604622397,0.51537,3879.1,3878.5,0.4281]
[1754604622594,0.426,3879.0,3878.8,3.72318]
[1754604622787,1.316,3879.0,3878.9,0.4281]
[1754604623192,1.316,3879.3,3879.2,1.34844]
[1754604623390,1.53985604,3879.5,3879.2,0.51534]
[1754604623588,1.53985604,3879.5,3879.4,0.8331]
[1754604623789,1.316,3879.6,3879.4,0.8331]
[1754604623990,1.316,3879.6,3879.5,0.4281]
[1754604624185,0.51529,3879.6,3879.4,0.405]
[1754604624388,0.51528,3879.7,3879.4,0.8331]
[1754604624590,0.8716,3879.3,3879.2,3.2078]
[1754604624790,1.316,3879.3,3879.2,3.2078]
[1754604624992,0.8704,3879.1,3878.8,0.51539]
[1754604625189,1.38693,3879.3,3878.9,1.2558]
[1754604625396,0.8716,3879.2,3878.8,0.51539]
[1754604625595,0.8716,3879.2,3878.7,3.2078]
[1754604625596,1.316,3879.0,3878.9,0.4281]
[1754604626194,0.426,3879.0,3878.9,1.2558]
[1754604626396,0.51536,3879.1,3878.8,1.2558]
[1754604626600,1.83136,3879.1,3878.7,3.72321]
[1754604626789,1.316,3879.0,3878.7,3.2078]
[1754604626991,1.316,3878.8,3878.7,3.2078]
[1754604627496,0.51538,3878.9,3878.4,2.2557]
[1754604627497,1.83143,3878.5,3878.4,0.9999]
[1754604627895,1.38583,3878.5,3878.4,2.2557]
[1754604628096,1.38583,3878.5,3878.4,1.2558]
[1754604628301,1.83143,3878.5,3878.4,1.2558]
[1754604629094,1.83143,3878.5,3878.4,0.4281]
[1754604629904,0.51547,3878.2,3878.1,0.9999]
[1754604630106,0.94147,3878.2,3878.1,2.2557]
[1754604630404,0.51546,3878.4,3878.1,4.2077]
[1754604630593,0.51545,3878.4,3878.1,4.2077]
[1754604631001,0.51547,3878.2,3878.1,4.2077]
[1754604631201,18.033,3878.7,3878.1,4.2077]
[1754604631202,0.51547,3878.3,3878.2,0.8331]
[1754604631506,1.80037,3878.3,3878.2,1.2558]
[1754604632907,1.80037,3878.3,3878.1,4.2077]
[1754604633114,1.2724,3878.2,3878.1,5.4538]
[1754604633404,1.2724,3878.2,3878.1,4.619]
[1754604633601,1.2724,3878.2,3878.1,3.6191]
[1754604633806,1.2724,3878.2,3878.1,4.4539]
[1754604634207,0.8378,3878.2,3878.1,4.4539]
[1754604634403,1.2724,3878.2,3878.1,4.0185]
[1754604634600,1.2724,3878.2,3878.1,3.6191]
[1754604635106,1.2724,3878.2,3878.1,4.4539]
[1754604635696,1.2724,3878.2,3878.1,5.3117]
[1754604636099,2.1158,3878.2,3878.1,4.8763]
[1754604636309,2.1158,3878.2,3878.1,4.1851]
[1754604636800,2.1158,3878.2,3878.1,5.0199]
[1754604636998,2.1158,3878.2,3878.1,5.3117]
[1754604637604,2.1158,3878.2,3878.1,3.7738]
[1754604637807,2.1158,3878.2,3878.1,3.4842]
[1754604638003,2.1158,3878.2,3878.1,3.2078]
[1754604638201,1.2724,3878.1,3877.8,0.9999]
[1754604638401,1.2724,3878.0,3877.8,0.9999]
[1754604638602,18.52351,3877.9,3877.8,0.9999]
[1754604638801,19.79591,3877.9,3877.8,0.5461]
[1754604639002,1.72649,3877.3,3877.2,3.2078]
[1754604639405,1.72649,3877.3,3877.2,3.6432]
[1754604639910,1.72649,3877.3,3877.2,4.0545]
[1754604640411,0.51559,3877.4,3877.3,0.8467]
[1754604640612,0.51559,3877.4,3877.2,3.2078]
[1754604640913,0.51559,3877.4,3877.3,0.8107]
[1754604641110,0.51559,3877.4,3877.2,3.6432]
[1754604641409,0.3618,3877.3,3877.2,3.6432]
[1754604641612,1.2109,3877.3,3877.2,4.4539]
[1754604642113,0.93007,3877.6,3877.2,3.7234]
[1754604642315,0.51558,3877.4,3877.3,1.2461]
[1754604642514,0.51558,3877.4,3877.2,3.2078]
[1754604642515,0.51557,3877.5,3877.2,3.2078]
[1754604642717,18.3718,3877.7,3877.2,3.2078]
[1754604642718,1.72649,3877.3,3877.2,3.2078]
[1754604643211,2.56989,3877.3,3877.2,3.2078]
[1754604643409,18.01,3877.7,3876.8,1.0036]
[1754604643410,2.56995,3876.9,3876.8,1.0036]
[1754604643607,2.0543,3876.7,3876.6,3.2078]
[1754604643808,1.72659,3876.6,3876.5,0.4741]
[1754604644009,1.36489,3875.8,3875.7,3.2078]
[1754604644312,1.36495,3875.4,3875.3,4.0545]
[1754604644513,1.36495,3875.4,3875.3,3.2078]
[1754604644714,0.4145,3875.4,3875.3,4.0185]
[1754604644907,18.012,3875.8,3875.5,0.8467]
[1754604645110,0.4145,3876.1,3875.6,0.8467]
[1754604645415,18.4265,3876.3,3875.9,0.3994]
[1754604645616,0.4346,3876.6,3876.1,3.2078]
[1754604645815,55.5535,3876.7,3876.6,1.2461]
[1754604646216,55.9881,3876.7,3876.6,1.2461]
[1754604646618,55.9881,3876.7,3876.6,4.4539]
[1754604647113,0.95023,3877.1,3876.6,4.4539]
[1754604647318,0.51562,3877.2,3876.8,0.8348]
[1754604647622,0.4145,3876.8,3876.7,0.8467]
[1754604647921,0.4145,3876.8,3876.7,1.2461]
[1754604648323,0.8491,3876.8,3876.6,3.2078]
[1754604648513,0.8491,3876.7,3876.6,3.2078]
[1754604648818,0.8491,3876.7,3876.2,0.0046]
[1754604648819,0.51572,3876.4,3876.2,0.8513]
[1754604649014,0.51572,3876.4,3876.2,0.0046]
[1754604649015,0.8491,3876.3,3876.2,0.0046]
[1754604649817,0.4145,3876.7,3876.2,0.52033]
[1754604650010,3.2078,3877.3,3876.6,3.6432]
[1754604650215,18.013,3877.2,3876.7,1.2461]
[1754604650421,0.8491,3876.8,3876.7,0.8467]
[1754604650714,0.93013,3877.1,3876.8,0.4113]
[1754604650908,18.4275,3877.0,3876.6,3.6191]
[1754604651111,0.4346,3877.4,3876.8,1.76175]